[Event "Titled Tuesday Blitz January 31 Early 2023"]
[White "Ongut, Tamas Gunes"]
[Black "Fajdetic, Hrvoje"]
[WhiteFideId "770280"]
[BlackFideId "14501945"]
[WhiteElo "2299"]
[BlackElo "2151"]
[Result "1-0"]
[Round "09"]
[TimeControl "180+2"]
[Date "2023.01.31"]
[WhiteClock "0:01:20"]
[BlackClock "0:00:03"]

1. Nf3 {[%clk 0:03:00]}  f5 {[%clk 0:02:33]} 2. g3 {[%clk 0:03:01]}  Nf6 {[%clk 0:02:30]} 3. Bg2 {[%clk 0:03:02]}  d6 {[%clk 0:02:30]} 4. O-O {[%clk 0:03:03]}  e5 {[%clk 0:02:30]} 5. d3 {[%clk 0:02:56]}  Be7 {[%clk 0:02:30]} 6. Nc3 {[%clk 0:02:55]}  O-O {[%clk 0:02:30]} 7. e4 {[%clk 0:02:55]}  Qe8 {[%clk 0:02:28]} 8. exf5 {[%clk 0:02:54]}  Bxf5 {[%clk 0:02:29]} 9. d4 {[%clk 0:02:54]}  exd4 {[%clk 0:02:24]} 10. Nxd4 {[%clk 0:02:54]}  Bc8 {[%clk 0:02:23]} 11. Re1 {[%clk 0:02:52]}  Qf7 {[%clk 0:02:18]} 12. Bg5 {[%clk 0:02:49]}  c6 {[%clk 0:02:13]} 13. Qe2 {[%clk 0:02:36]}  Bd8 {[%clk 0:02:04]} 14. Ne6 {[%clk 0:02:34]}  Bxe6 {[%clk 0:01:55]} 15. Qxe6 {[%clk 0:02:35]}  Qxe6 {[%clk 0:01:55]} 16. Rxe6 {[%clk 0:02:36]}  d5 {[%clk 0:01:49]} 17. Bxf6 {[%clk 0:02:16]}  Bxf6 {[%clk 0:01:48]} 18. Nxd5 {[%clk 0:02:16]}  cxd5 {[%clk 0:01:17]} 19. Bxd5 {[%clk 0:02:14]}  Kh8 {[%clk 0:01:18]} 20. Bxb7 {[%clk 0:02:13]}  Nd7 {[%clk 0:01:18]} 21. Bxa8 {[%clk 0:02:13]}  Rxa8 {[%clk 0:01:18]} 22. c3 {[%clk 0:02:14]}  Nc5 {[%clk 0:01:13]} 23. Re2 {[%clk 0:02:09]}  Na4 {[%clk 0:01:10]} 24. Rae1 {[%clk 0:02:08]}  Kg8 {[%clk 0:01:06]} 25. Re8+ {[%clk 0:02:08]}  Rxe8 {[%clk 0:01:06]} 26. Rxe8+ {[%clk 0:02:08]}  Kf7 {[%clk 0:01:06]} 27. Rb8 {[%clk 0:02:05]}  a5 {[%clk 0:00:49]} 28. Rb5 {[%clk 0:02:03]}  Ke6 {[%clk 0:00:43]} 29. Kg2 {[%clk 0:02:00]}  Kd6 {[%clk 0:00:42]} 30. Kf3 {[%clk 0:01:58]}  Kc6 {[%clk 0:00:42]} 31. Rxa5 {[%clk 0:01:50]}  Nxb2 {[%clk 0:00:41]} 32. Ra8 {[%clk 0:01:47]}  Kb7 {[%clk 0:00:38]} 33. Rf8 {[%clk 0:01:35]}  Bxc3 {[%clk 0:00:35]} 34. Ke4 {[%clk 0:01:35]}  Nd1 {[%clk 0:00:32]} 35. Rf3 {[%clk 0:01:27]}  Bf6 {[%clk 0:00:28]} 36. Kd3 {[%clk 0:01:27]}  Nb2+ {[%clk 0:00:27]} 37. Ke4 {[%clk 0:01:23]}  Nc4 {[%clk 0:00:27]} 38. Kd5 {[%clk 0:01:23]}  Nb6+ {[%clk 0:00:21]} 39. Ke6 {[%clk 0:01:23]}  Kc6 {[%clk 0:00:15]} 40. Rxf6 {[%clk 0:01:23]}  gxf6 {[%clk 0:00:16]} 41. Kxf6 {[%clk 0:01:24]}  Kd5 {[%clk 0:00:13]} 42. Kg7 {[%clk 0:01:21]}  h5 {[%clk 0:00:13]} 43. Kg6 {[%clk 0:01:22]}  h4 {[%clk 0:00:13]} 44. gxh4 {[%clk 0:01:22]}  Nd7 {[%clk 0:00:09]} 45. h5 {[%clk 0:01:20]}  Ke5 {[%clk 0:00:07]} 46. h6 {[%clk 0:01:19]}  Nf8+ {[%clk 0:00:07]} 47. Kg7 {[%clk 0:01:19]}  Ne6+ {[%clk 0:00:08]} 48. Kg8 {[%clk 0:01:19]}  Ng5 {[%clk 0:00:03]} 49. h7 {[%clk 0:01:20]}  Nxh7 {[%clk 0:00:03]} 50. Kxh7 {[%clk 0:01:20]} 1-0


[Site "https://www.chess.com"]

[Event "Titled Tuesday Blitz January 31 Early 2023"]
[White "Matt, Fabian"]
[Black "Oro, Faustino"]
[WhiteFideId "1623303"]
[BlackFideId "20000197"]
[WhiteElo "2308"]
[BlackElo "2269"]
[Result "0-1"]
[Round "09"]
[TimeControl "180+2"]
[Date "2023.01.31"]
[WhiteClock "0:00:09"]
[BlackClock "0:00:24"]

1. d4 {[%clk 0:03:00]}  Nf6 {[%clk 0:02:59]} 2. c4 {[%clk 0:02:59]}  e6 {[%clk 0:02:59]} 3. Nf3 {[%clk 0:03:00]}  b6 {[%clk 0:02:58]} 4. g3 {[%clk 0:03:00]}  Bb7 {[%clk 0:02:59]} 5. Bg2 {[%clk 0:03:00]}  Be7 {[%clk 0:02:59]} 6. O-O {[%clk 0:03:01]}  O-O {[%clk 0:02:59]} 7. d5 {[%clk 0:03:01]}  exd5 {[%clk 0:02:59]} 8. Nh4 {[%clk 0:03:01]}  c6 {[%clk 0:02:59]} 9. cxd5 {[%clk 0:03:00]}  Nxd5 {[%clk 0:03:00]} 10. Nf5 {[%clk 0:02:59]}  Nc7 {[%clk 0:03:00]} 11. e4 {[%clk 0:02:41]}  d5 {[%clk 0:02:57]} 12. Nc3 {[%clk 0:02:37]}  Bf6 {[%clk 0:02:49]} 13. Re1 {[%clk 0:02:34]}  Re8 {[%clk 0:02:37]} 14. Qg4 {[%clk 0:02:18]}  g6 {[%clk 0:02:24]} 15. Bf4 {[%clk 0:02:01]}  Bc8 {[%clk 0:02:12]} 16. Nh6+ {[%clk 0:01:46]}  Kg7 {[%clk 0:02:10]} 17. Qf3 {[%clk 0:01:44]}  Ne6 {[%clk 0:01:50]} 18. exd5 {[%clk 0:01:35]}  Nxf4 {[%clk 0:01:46]} 19. Rxe8 {[%clk 0:01:26]}  Qxe8 {[%clk 0:01:42]} 20. Qxf4 {[%clk 0:01:25]}  Bd7 {[%clk 0:01:31]} 21. dxc6 {[%clk 0:01:17]}  Nxc6 {[%clk 0:01:24]} 22. Ne4 {[%clk 0:01:11]}  Be5 {[%clk 0:01:20]} 23. Qh4 {[%clk 0:01:11]}  Nd4 {[%clk 0:01:12]} 24. Re1 {[%clk 0:01:01]}  Bc6 {[%clk 0:01:08]} 25. Nxf7 {[%clk 0:00:47]}  Nf5 {[%clk 0:00:58]} 26. Qh3 {[%clk 0:00:32]}  Bxe4 {[%clk 0:00:43]} 27. Nxe5 {[%clk 0:00:26]}  Bxg2 {[%clk 0:00:35]} 28. Qxg2 {[%clk 0:00:24]}  Rd8 {[%clk 0:00:36]} 29. Qb7+ {[%clk 0:00:23]}  Qe7 {[%clk 0:00:29]} 30. Qxe7+ {[%clk 0:00:15]}  Nxe7 {[%clk 0:00:30]} 31. Re2 {[%clk 0:00:16]}  Rd1+ {[%clk 0:00:30]} 32. Kg2 {[%clk 0:00:16]}  Ra1 {[%clk 0:00:28]} 33. a3 {[%clk 0:00:16]}  Nd5 {[%clk 0:00:28]} 34. Nc6 {[%clk 0:00:14]}  a5 {[%clk 0:00:27]} 35. Rd2 {[%clk 0:00:14]}  Nf6 {[%clk 0:00:26]} 36. Ne5 {[%clk 0:00:12]}  Ra2 {[%clk 0:00:24]} 37. Nc4 {[%clk 0:00:12]}  Ne4 {[%clk 0:00:23]} 38. Re2 {[%clk 0:00:12]}  Nc5 {[%clk 0:00:22]} 39. Nxb6 {[%clk 0:00:13]}  Nd3 {[%clk 0:00:22]} 40. Nc4 {[%clk 0:00:13]}  a4 {[%clk 0:00:22]} 41. Rd2 {[%clk 0:00:11]}  Ne1+ {[%clk 0:00:21]} 42. Kf1 {[%clk 0:00:11]}  Nf3 {[%clk 0:00:21]} 43. Rc2 {[%clk 0:00:10]}  Ra1+ {[%clk 0:00:20]} 44. Ke2 {[%clk 0:00:10]}  Nd4+ {[%clk 0:00:20]} 45. Kd2 {[%clk 0:00:11]}  Nxc2 {[%clk 0:00:21]} 46. Kxc2 {[%clk 0:00:12]}  Rf1 {[%clk 0:00:22]} 47. Kc3 {[%clk 0:00:11]}  Rxf2 {[%clk 0:00:22]} 48. Nb6 {[%clk 0:00:12]}  Rxh2 {[%clk 0:00:23]} 49. Nxa4 {[%clk 0:00:12]}  Rh3 {[%clk 0:00:23]} 50. Nc5 {[%clk 0:00:13]}  Rxg3+ {[%clk 0:00:24]} 51. Kd4 {[%clk 0:00:13]}  h5 {[%clk 0:00:25]} 52. b4 {[%clk 0:00:13]}  h4 {[%clk 0:00:25]} 53. Ne4 {[%clk 0:00:13]}  Rg4 {[%clk 0:00:24]} 54. Ke3 {[%clk 0:00:13]}  h3 {[%clk 0:00:24]} 55. Nf2 {[%clk 0:00:09]}  h2 {[%clk 0:00:24]} 0-1


[Site "https://www.chess.com"]

[Event "Titled Tuesday Blitz January 31 Early 2023"]
[White "Gatterer, Florian"]
[Black "Gurevich, Dmitry"]
[WhiteFideId "811688"]
[BlackFideId "2000407"]
[WhiteElo "2170"]
[BlackElo "2393"]
[Result "0-1"]
[Round "09"]
[TimeControl "180+2"]
[Date "2023.01.31"]
[WhiteClock "0:00:21"]
[BlackClock "0:00:21"]

1. b3 {[%clk 0:02:52]}  d5 {[%clk 0:02:56]} 2. Nf3 {[%clk 0:02:51]}  c5 {[%clk 0:02:55]} 3. e3 {[%clk 0:02:50]}  f6 {[%clk 0:02:52]} 4. d4 {[%clk 0:02:49]}  cxd4 {[%clk 0:02:49]} 5. exd4 {[%clk 0:02:49]}  Nc6 {[%clk 0:02:48]} 6. Be2 {[%clk 0:02:38]}  Bg4 {[%clk 0:02:48]} 7. O-O {[%clk 0:02:35]}  e6 {[%clk 0:02:48]} 8. c4 {[%clk 0:02:35]}  Bd6 {[%clk 0:02:46]} 9. Nc3 {[%clk 0:02:27]}  Nge7 {[%clk 0:02:45]} 10. c5 {[%clk 0:02:25]}  Bc7 {[%clk 0:02:38]} 11. Nb5 {[%clk 0:02:17]}  Bb8 {[%clk 0:02:37]} 12. Ba3 {[%clk 0:02:13]}  O-O {[%clk 0:02:34]} 13. Nd6 {[%clk 0:02:12]}  b6 {[%clk 0:02:24]} 14. b4 {[%clk 0:02:07]}  Bxd6 {[%clk 0:02:20]} 15. cxd6 {[%clk 0:02:07]}  Qxd6 {[%clk 0:02:19]} 16. Rc1 {[%clk 0:02:07]}  a6 {[%clk 0:02:08]} 17. Rc3 {[%clk 0:01:51]}  b5 {[%clk 0:02:07]} 18. h3 {[%clk 0:01:50]}  Bxf3 {[%clk 0:02:05]} 19. Bxf3 {[%clk 0:01:50]}  Nf5 {[%clk 0:02:05]} 20. Rd3 {[%clk 0:01:38]}  Nxb4 {[%clk 0:02:00]} 21. Qb1 {[%clk 0:01:29]}  a5 {[%clk 0:01:58]} 22. Bg4 {[%clk 0:01:24]}  Ne7 {[%clk 0:01:48]} 23. Bxb4 {[%clk 0:01:21]}  axb4 {[%clk 0:01:47]} 24. Rb3 {[%clk 0:01:21]}  Nc6 {[%clk 0:01:42]} 25. Rd1 {[%clk 0:01:09]}  Ra4 {[%clk 0:01:29]} 26. Re3 {[%clk 0:01:09]}  f5 {[%clk 0:01:28]} 27. Be2 {[%clk 0:01:06]}  b3 {[%clk 0:01:20]} 28. axb3 {[%clk 0:00:52]}  Rxd4 {[%clk 0:01:14]} 29. Bxb5 {[%clk 0:00:51]}  Rxd1+ {[%clk 0:01:09]} 30. Qxd1 {[%clk 0:00:52]}  Rb8 {[%clk 0:01:03]} 31. Bxc6 {[%clk 0:00:49]}  Qxc6 {[%clk 0:01:03]} 32. Qe1 {[%clk 0:00:49]}  Rb6 {[%clk 0:01:00]} 33. g3 {[%clk 0:00:46]}  h6 {[%clk 0:00:59]} 34. h4 {[%clk 0:00:45]}  Kh7 {[%clk 0:00:56]} 35. Kh2 {[%clk 0:00:45]}  d4 {[%clk 0:00:52]} 36. Re5 {[%clk 0:00:42]}  Qd6 {[%clk 0:00:50]} 37. g4 {[%clk 0:00:33]}  d3 {[%clk 0:00:35]} 38. gxf5 {[%clk 0:00:25]}  d2 {[%clk 0:00:35]} 39. Qe4 {[%clk 0:00:25]}  d1=Q {[%clk 0:00:26]} 40. fxe6+ {[%clk 0:00:24]}  Kh8 {[%clk 0:00:26]} 41. f4 {[%clk 0:00:23]}  Q6d2+ {[%clk 0:00:23]} 42. Kg3 {[%clk 0:00:21]}  Qg1+ {[%clk 0:00:21]} 0-1


[Site "https://www.chess.com"]

[Event "Titled Tuesday Blitz January 31 Early 2023"]
[White "Iljin, Timofey"]
[Black "Mrudul Dehankar"]
[WhiteFideId "14110180"]
[BlackFideId "25096990"]
[WhiteElo "2329"]
[BlackElo "2030"]
[Result "1-0"]
[Round "09"]
[TimeControl "180+2"]
[Date "2023.01.31"]
[WhiteClock "0:02:45"]
[BlackClock "0:00:08"]

1. e4 {[%clk 0:03:00]}  c6 {[%clk 0:02:34]} 2. d4 {[%clk 0:02:59]}  d5 {[%clk 0:02:32]} 3. e5 {[%clk 0:02:59]}  Bf5 {[%clk 0:02:32]} 4. h4 {[%clk 0:02:58]}  h5 {[%clk 0:02:20]} 5. Bg5 {[%clk 0:02:57]}  Qb6 {[%clk 0:02:14]} 6. Bd3 {[%clk 0:02:56]}  Bxd3 {[%clk 0:02:02]} 7. Qxd3 {[%clk 0:02:55]}  Qxb2 {[%clk 0:01:57]} 8. e6 {[%clk 0:02:55]}  Qxa1 {[%clk 0:01:39]} 9. Qb3 {[%clk 0:02:54]}  b6 {[%clk 0:00:47]} 10. exf7+ {[%clk 0:02:52]}  Kxf7 {[%clk 0:00:46]} 11. Nf3 {[%clk 0:02:53]}  Nd7 {[%clk 0:00:42]} 12. O-O {[%clk 0:02:52]}  a5 {[%clk 0:00:28]} 13. Nc3 {[%clk 0:02:51]}  Qxf1+ {[%clk 0:00:19]} 14. Kxf1 {[%clk 0:02:52]}  Ngf6 {[%clk 0:00:20]} 15. Ne5+ {[%clk 0:02:49]}  Ke8 {[%clk 0:00:18]} 16. Nxc6 {[%clk 0:02:48]}  e6 {[%clk 0:00:19]} 17. Ne5 {[%clk 0:02:47]}  Bd6 {[%clk 0:00:17]} 18. Nxd7 {[%clk 0:02:45]}  Nxd7 {[%clk 0:00:18]} 19. Nxd5 {[%clk 0:02:45]}  exd5 {[%clk 0:00:17]} 20. Qxd5 {[%clk 0:02:46]}  Rc8 {[%clk 0:00:16]} 21. Qxd6 {[%clk 0:02:45]}  Nf8 {[%clk 0:00:08]} 22. Qe7# {[%clk 0:02:45]} 1-0


[Site "https://www.chess.com"]

[Event "Titled Tuesday Blitz January 31 Early 2023"]
[White "Papayan, Oleg"]
[Black "Lauridsen, Jesper Morch"]
[WhiteFideId "4193911"]
[BlackFideId "1401890"]
[WhiteElo "2253"]
[BlackElo "2309"]
[Result "1-0"]
[Round "09"]
[TimeControl "180+2"]
[Date "2023.01.31"]
[WhiteClock "0:00:14"]
[BlackClock "0:00:03"]

1. d4 {[%clk 0:03:00]}  d6 {[%clk 0:02:56]} 2. Nf3 {[%clk 0:02:59]}  g6 {[%clk 0:02:54]} 3. e4 {[%clk 0:02:49]}  Bg7 {[%clk 0:02:54]} 4. Nc3 {[%clk 0:02:49]}  Nd7 {[%clk 0:02:53]} 5. Be3 {[%clk 0:02:34]}  a6 {[%clk 0:02:52]} 6. a4 {[%clk 0:02:30]}  b6 {[%clk 0:02:50]} 7. Bc4 {[%clk 0:02:28]}  e6 {[%clk 0:02:48]} 8. O-O {[%clk 0:02:28]}  Bb7 {[%clk 0:02:48]} 9. Qe2 {[%clk 0:02:25]}  Ne7 {[%clk 0:02:40]} 10. Rad1 {[%clk 0:02:24]}  O-O {[%clk 0:02:35]} 11. Rfe1 {[%clk 0:02:25]}  Rc8 {[%clk 0:02:15]} 12. Bxa6 {[%clk 0:02:08]}  Bxa6 {[%clk 0:02:12]} 13. Qxa6 {[%clk 0:02:09]}  c5 {[%clk 0:02:10]} 14. dxc5 {[%clk 0:02:03]}  Nxc5 {[%clk 0:02:09]} 15. Bxc5 {[%clk 0:01:45]}  Rxc5 {[%clk 0:02:07]} 16. e5 {[%clk 0:01:38]}  Nd5 {[%clk 0:01:55]} 17. Nxd5 {[%clk 0:01:20]}  exd5 {[%clk 0:01:48]} 18. c3 {[%clk 0:01:13]}  dxe5 {[%clk 0:01:40]} 19. Nxe5 {[%clk 0:01:09]}  Ra5 {[%clk 0:01:36]} 20. Qb7 {[%clk 0:00:58]}  Rxa4 {[%clk 0:01:26]} 21. Qxd5 {[%clk 0:00:41]}  Qxd5 {[%clk 0:01:08]} 22. Rxd5 {[%clk 0:00:42]}  Re8 {[%clk 0:01:08]} 23. Nf3 {[%clk 0:00:41]}  Rxe1+ {[%clk 0:01:02]} 24. Nxe1 {[%clk 0:00:42]}  Ra1 {[%clk 0:00:56]} 25. Rd8+ {[%clk 0:00:42]}  Bf8 {[%clk 0:00:55]} 26. Kf1 {[%clk 0:00:42]}  Rb1 {[%clk 0:00:52]} 27. Rd2 {[%clk 0:00:30]}  Bh6 {[%clk 0:00:48]} 28. Rc2 {[%clk 0:00:30]}  Bc1 {[%clk 0:00:43]} 29. b4 {[%clk 0:00:29]}  Bg5 {[%clk 0:00:36]} 30. Ke2 {[%clk 0:00:29]}  Bf6 {[%clk 0:00:34]} 31. Nf3 {[%clk 0:00:24]}  Rb3 {[%clk 0:00:32]} 32. Kd3 {[%clk 0:00:24]}  b5 {[%clk 0:00:29]} 33. Nd4 {[%clk 0:00:21]}  Rb1 {[%clk 0:00:21]} 34. Nxb5 {[%clk 0:00:19]}  Rg1 {[%clk 0:00:20]} 35. g3 {[%clk 0:00:19]}  Rg2 {[%clk 0:00:20]} 36. h4 {[%clk 0:00:20]}  g5 {[%clk 0:00:17]} 37. hxg5 {[%clk 0:00:20]}  Bxg5 {[%clk 0:00:18]} 38. Nd4 {[%clk 0:00:19]}  h5 {[%clk 0:00:17]} 39. b5 {[%clk 0:00:19]}  Bd8 {[%clk 0:00:15]} 40. Nc6 {[%clk 0:00:15]}  Bc7 {[%clk 0:00:15]} 41. Ne7+ {[%clk 0:00:15]}  Kf8 {[%clk 0:00:15]} 42. Nd5 {[%clk 0:00:16]}  Bd6 {[%clk 0:00:12]} 43. b6 {[%clk 0:00:16]}  h4 {[%clk 0:00:12]} 44. gxh4 {[%clk 0:00:15]}  Rg4 {[%clk 0:00:12]} 45. b7 {[%clk 0:00:13]}  Rxh4 {[%clk 0:00:11]} 46. Rb2 {[%clk 0:00:13]}  Bb8 {[%clk 0:00:09]} 47. Nb4 {[%clk 0:00:13]}  Rh3+ {[%clk 0:00:07]} 48. Kc4 {[%clk 0:00:13]}  Rh4+ {[%clk 0:00:05]} 49. Kd5 {[%clk 0:00:14]}  Rh5+ {[%clk 0:00:03]} 50. Kc6 {[%clk 0:00:14]} 1-0


[Site "https://www.chess.com"]

[Event "Titled Tuesday Blitz January 31 Early 2023"]
[White "Bilan, Danila"]
[Black "Gottstein, Claudius-Thomas"]
[WhiteFideId "24161918"]
[BlackFideId "4653327"]
[WhiteElo "2303"]
[BlackElo "2113"]
[Result "1-0"]
[Round "09"]
[TimeControl "180+2"]
[Date "2023.01.31"]
[WhiteClock "0:01:13"]
[BlackClock "0:01:19"]

1. d4 {[%clk 0:03:00]}  d5 {[%clk 0:02:57]} 2. Nf3 {[%clk 0:03:00]}  Bf5 {[%clk 0:02:57]} 3. c4 {[%clk 0:03:01]}  e6 {[%clk 0:02:57]} 4. Nc3 {[%clk 0:02:57]}  c6 {[%clk 0:02:56]} 5. Qb3 {[%clk 0:02:50]}  Qb6 {[%clk 0:02:56]} 6. c5 {[%clk 0:02:50]}  Qc7 {[%clk 0:02:56]} 7. g3 {[%clk 0:02:42]}  Nd7 {[%clk 0:02:54]} 8. Bf4 {[%clk 0:02:41]}  Qc8 {[%clk 0:02:54]} 9. Bg2 {[%clk 0:02:33]}  h6 {[%clk 0:02:54]} 10. Qd1 {[%clk 0:02:24]}  Ngf6 {[%clk 0:02:47]} 11. b4 {[%clk 0:02:23]}  b5 {[%clk 0:02:45]} 12. a4 {[%clk 0:02:10]}  a6 {[%clk 0:02:43]} 13. axb5 {[%clk 0:02:06]}  axb5 {[%clk 0:02:43]} 14. O-O {[%clk 0:01:56]}  Be7 {[%clk 0:02:43]} 15. Nd2 {[%clk 0:01:45]}  O-O {[%clk 0:02:41]} 16. Nb3 {[%clk 0:01:43]}  Bd8 {[%clk 0:02:33]} 17. Bd6 {[%clk 0:01:41]}  Re8 {[%clk 0:02:33]} 18. Rxa8 {[%clk 0:01:37]}  Qxa8 {[%clk 0:02:32]} 19. Qa1 {[%clk 0:01:38]}  Qxa1 {[%clk 0:02:03]} 20. Rxa1 {[%clk 0:01:36]}  e5 {[%clk 0:01:49]} 21. e3 {[%clk 0:01:30]}  exd4 {[%clk 0:01:47]} 22. Nxd4 {[%clk 0:01:28]}  Be4 {[%clk 0:01:45]} 23. Nxc6 {[%clk 0:01:23]}  Bxg2 {[%clk 0:01:44]} 24. Kxg2 {[%clk 0:01:24]}  d4 {[%clk 0:01:28]} 25. exd4 {[%clk 0:01:20]}  Nf8 {[%clk 0:01:19]} 26. Ra8 {[%clk 0:01:13]} 1-0


[Site "https://www.chess.com"]

[Event "Titled Tuesday Blitz January 31 Early 2023"]
[White "Mione, Dario"]
[Black "Reprintsev, Alexander"]
[WhiteFideId "806625"]
[BlackFideId "14100541"]
[WhiteElo "2228"]
[BlackElo "2253"]
[Result "0-1"]
[Round "09"]
[TimeControl "180+2"]
[Date "2023.01.31"]
[WhiteClock "0:00:03"]
[BlackClock "0:01:04"]

1. Nf3 {[%clk 0:03:00]}  d5 {[%clk 0:02:59]} 2. d4 {[%clk 0:03:00]}  Nc6 {[%clk 0:02:58]} 3. g3 {[%clk 0:02:52]}  Bf5 {[%clk 0:02:57]} 4. Bg2 {[%clk 0:02:52]}  Nb4 {[%clk 0:02:57]} 5. Na3 {[%clk 0:02:51]}  e6 {[%clk 0:02:57]} 6. c3 {[%clk 0:02:50]}  Nc6 {[%clk 0:02:56]} 7. Nc2 {[%clk 0:02:50]}  h6 {[%clk 0:02:56]} 8. O-O {[%clk 0:02:48]}  Nf6 {[%clk 0:02:55]} 9. Ne5 {[%clk 0:02:45]}  Be7 {[%clk 0:02:28]} 10. Ne1 {[%clk 0:02:10]}  O-O {[%clk 0:02:24]} 11. N1f3 {[%clk 0:02:10]}  Ne4 {[%clk 0:02:16]} 12. Nxc6 {[%clk 0:02:07]}  bxc6 {[%clk 0:02:15]} 13. Ne5 {[%clk 0:02:07]}  c5 {[%clk 0:02:11]} 14. Nc6 {[%clk 0:02:05]}  Qd6 {[%clk 0:02:11]} 15. Nxe7+ {[%clk 0:02:05]}  Qxe7 {[%clk 0:02:11]} 16. Bxe4 {[%clk 0:01:23]}  Bxe4 {[%clk 0:02:08]} 17. Be3 {[%clk 0:01:22]}  c4 {[%clk 0:02:08]} 18. b4 {[%clk 0:01:19]}  f6 {[%clk 0:01:49]} 19. a4 {[%clk 0:01:07]}  Kh7 {[%clk 0:01:47]} 20. a5 {[%clk 0:01:07]}  c6 {[%clk 0:01:45]} 21. Bf4 {[%clk 0:00:59]}  e5 {[%clk 0:01:44]} 22. Be3 {[%clk 0:00:59]}  Rf7 {[%clk 0:01:42]} 23. Qa4 {[%clk 0:00:47]}  Qd7 {[%clk 0:01:41]} 24. Ra2 {[%clk 0:00:34]}  a6 {[%clk 0:01:41]} 25. Raa1 {[%clk 0:00:33]}  Rb8 {[%clk 0:01:41]} 26. dxe5 {[%clk 0:00:21]}  fxe5 {[%clk 0:01:40]} 27. Bb6 {[%clk 0:00:21]}  Rbf8 {[%clk 0:01:35]} 28. f3 {[%clk 0:00:20]}  Bg6 {[%clk 0:01:35]} 29. Rad1 {[%clk 0:00:20]}  Qe6 {[%clk 0:01:33]} 30. Qa2 {[%clk 0:00:19]}  Rf5 {[%clk 0:01:31]} 31. Qd2 {[%clk 0:00:19]}  R8f7 {[%clk 0:01:31]} 32. Rf2 {[%clk 0:00:19]}  Rh5 {[%clk 0:01:28]} 33. Qe3 {[%clk 0:00:18]}  Bf5 {[%clk 0:01:25]} 34. g4 {[%clk 0:00:16]}  Rg5 {[%clk 0:01:24]} 35. Kf1 {[%clk 0:00:16]}  Bc2 {[%clk 0:01:20]} 36. Rc1 {[%clk 0:00:15]}  Bb3 {[%clk 0:01:20]} 37. h3 {[%clk 0:00:12]}  Rg6 {[%clk 0:01:19]} 38. Ke1 {[%clk 0:00:12]}  Rd7 {[%clk 0:01:13]} 39. Rb1 {[%clk 0:00:08]}  Qf6 {[%clk 0:01:13]} 40. Qc5 {[%clk 0:00:06]}  d4 {[%clk 0:01:12]} 41. cxd4 {[%clk 0:00:03]}  exd4 {[%clk 0:01:12]} 42. Rc1 {[%clk 0:00:03]}  Qf4 {[%clk 0:01:04]} 0-1


[Site "https://www.chess.com"]

[Event "Titled Tuesday Blitz January 31 Early 2023"]
[White "matenitian"]
[Black "Ambartsumova, Karina"]
[BlackFideId "4166299"]
[WhiteElo "2434"]
[BlackElo "2393"]
[Result "0-1"]
[Round "09"]
[TimeControl "180+2"]
[Date "2023.01.31"]
[WhiteClock "0:00:01"]
[BlackClock "0:00:57"]

1. e4 {[%clk 0:02:55]}  e5 {[%clk 0:02:58]} 2. Nf3 {[%clk 0:02:54]}  d5 {[%clk 0:02:58]} 3. Nxe5 {[%clk 0:02:41]}  Bd6 {[%clk 0:02:57]} 4. d4 {[%clk 0:02:40]}  dxe4 {[%clk 0:02:58]} 5. Nc4 {[%clk 0:02:38]}  Nf6 {[%clk 0:02:57]} 6. Nc3 {[%clk 0:02:31]}  O-O {[%clk 0:02:46]} 7. Bg5 {[%clk 0:02:25]}  Bf5 {[%clk 0:02:45]} 8. Nxd6 {[%clk 0:02:20]}  Qxd6 {[%clk 0:02:44]} 9. Qd2 {[%clk 0:02:20]}  Nc6 {[%clk 0:02:42]} 10. O-O-O {[%clk 0:02:20]}  a6 {[%clk 0:02:38]} 11. Bxf6 {[%clk 0:02:08]}  Qxf6 {[%clk 0:02:36]} 12. Nd5 {[%clk 0:02:08]}  Qd6 {[%clk 0:02:34]} 13. Ne3 {[%clk 0:02:07]}  Bd7 {[%clk 0:02:22]} 14. g4 {[%clk 0:01:52]}  Rad8 {[%clk 0:02:14]} 15. h4 {[%clk 0:01:50]}  Qf4 {[%clk 0:02:10]} 16. Rg1 {[%clk 0:01:36]}  Bc8 {[%clk 0:01:58]} 17. c3 {[%clk 0:01:32]}  Ne5 {[%clk 0:01:42]} 18. Rg3 {[%clk 0:00:28]}  Nf3 {[%clk 0:01:33]} 19. Qc2 {[%clk 0:00:27]}  c5 {[%clk 0:01:33]} 20. d5 {[%clk 0:00:25]}  b5 {[%clk 0:01:30]} 21. Kb1 {[%clk 0:00:24]}  c4 {[%clk 0:01:30]} 22. h5 {[%clk 0:00:23]}  h6 {[%clk 0:01:28]} 23. Bg2 {[%clk 0:00:19]}  Ng5 {[%clk 0:01:23]} 24. Rd4 {[%clk 0:00:13]}  Rfe8 {[%clk 0:01:23]} 25. a3 {[%clk 0:00:11]}  Rd6 {[%clk 0:01:22]} 26. Ka2 {[%clk 0:00:12]}  Bd7 {[%clk 0:01:18]} 27. Bf1 {[%clk 0:00:08]}  Nf3 {[%clk 0:01:08]} 28. Rd1 {[%clk 0:00:08]}  a5 {[%clk 0:01:07]} 29. a4 {[%clk 0:00:05]}  Ne5 {[%clk 0:01:06]} 30. axb5 {[%clk 0:00:04]}  Bxb5 {[%clk 0:01:06]} 31. Ng2 {[%clk 0:00:01]}  Qf6 {[%clk 0:00:57]} 0-1


[Site "https://www.chess.com"]